[Event "ETCC Open 2023"]
[Site "Budva"]
[Date "2023.11.12"]
[Round "2.67"]
[White "Egilstoft, Rogvi"]
[Black "Kurmann, Oliver"]
[Result "1/2-1/2"]
[ECO "B22"]
[WhiteElo "2254"]
[BlackElo "2436"]
[Annotator "ChessBase"]
[PlyCount "71"]
[EventDate "2023.11.10"]
[EventType "team-tourn"]
[EventCountry "MNE"]
[SourceTitle "playchess.com"]
[Source "ChessBase"]
[SourceQuality "1"]
[WhiteTeam "Faroe Islands"]
[BlackTeam "Switzerland"]
[WhiteTeamCountry "FAI"]
[BlackTeamCountry "SUI"]
[TimeControl "40/5400+30:1800+30"]

1. e4 {[%emt 0:00:46]} c5 {[%emt 0:00:07]} 2. c3 {[%emt 0:00:52]} Nf6 {[%emt 0:00:12]} 3. e5 {[%emt 0:00:17]} Nd5 {[%emt 0:00:03]} 4. d4 {[%emt 0:00:31]} cxd4 {[%emt 0:00:14]} 5. Nf3 {[%emt 0:00:18]} Nc6 {[%emt 0:01:21]} 6. cxd4 {[%emt 0:00:11]} d6 {[%emt 0:00:08]} 7. Bc4 {[%emt 0:02:19]} dxe5 {[%emt 0:00:10]} 8. dxe5 {[%emt 0:05:40]} Be6 {[%emt 0:00:11]} 9. Qe2 {[%emt 0:16:40]} Qc7 {[%emt 0:07:14]} 10. O-O {[%emt 0:03:18]} g6 {[%emt 0:00:08]} 11. Bxd5 {[%emt 0:15:04]} Bxd5 {[%emt 0:01:41]} 12. Nc3 {[%emt 0:00:09]} Bxf3 {[%emt 0:34:10]} 13. Qxf3 {[%emt 0:00:09]} Bg7 {[%emt 0:00:14]} 14. Nd5 {[%emt 0:12:39]} Qxe5 {[%emt 0:03:10]} 15. Qb3 {[%emt 0:30:57]} Rd8 {[%emt 0:05:48]} 16. Nc3 {[%emt 0:06:25]} Rd7 {[%emt 0:04:37]} 17. Be3 {[%emt 0:00:25]} O-O {[%emt 0:00:06]} 18. Rfe1 {[%emt 0:00:20]} Qf5 {[%emt 0:02:16]} 19. Rad1 {[%emt 0:01:30]} Rfd8 {[%emt 0:00:16]} 20. Rxd7 {[%emt 0:00:03]} Rxd7 {[%emt 0:00:34]} 21. h3 {[%emt 0:00:32]} h5 {[%emt 0:09:33]} 22. Rd1 {[%emt 0:00:39]} Nd4 {[%emt 0:04:40]} 23. Qc4 {[%emt 0:01:20]} e5 {[%emt 0:00:34]} 24. Qc8+ {[%emt 0:00:54]} Kh7 {[%emt 0:00:04]} 25. Bxd4 {[%emt 0:00:10]} exd4 {[%emt 0:11:04]} 26. Ne4 {[%emt 0:00:03]} Rd5 {[%emt 0:02:17]} 27. Qxf5 {[%emt 0:00:39]} Rxf5 {[%emt 0:00:01]} 28. Kf1 {[%emt 0:00:50]} Ra5 {[%emt 0:01:52]} 29. a3 {[%emt 0:00:22]} Rb5 {[%emt 0:03:54]} 30. b4 {[%emt 0:00:13]} a5 {[%emt 0:01:51]} 31. Nd6 {[%emt 0:00:31]} Rd5 {[%emt 0:01:59]} 32. Nxb7 {[%emt 0:00:07]} axb4 {[%emt 0:06:01]} 33. axb4 {[%emt 0:00:01]} Bf8 {[%emt 0:00:00]} 34. Nc5 {[%emt 0:00:11]} Bxc5 {[%emt 0:00:00]} 35. bxc5 {[%emt 0:00:03]} Rxc5 {[%emt 0:00:00]} 36. Rxd4 {[%emt 0:00:09]} 1/2-1/2

[Event "ETCC Open 2023"]
[Site "Budva"]
[Date "2023.11.12"]
[Round "2.68"]
[White "Baenziger, Fabian"]
[Black "Rodgaard, John"]
[Result "1/2-1/2"]
[ECO "A07"]
[WhiteElo "2422"]
[BlackElo "2281"]
[Annotator "ChessBase"]
[PlyCount "60"]
[EventDate "2023.11.10"]
[EventType "team-tourn"]
[EventCountry "MNE"]
[SourceTitle "playchess.com"]
[Source "ChessBase"]
[SourceQuality "1"]
[WhiteTeam "Switzerland"]
[BlackTeam "Faroe Islands"]
[WhiteTeamCountry "SUI"]
[BlackTeamCountry "FAI"]
[TimeControl "40/5400+30:1800+30"]

1. Nf3 {[%emt 0:00:08]} d5 {[%emt 0:00:53]} 2. g3 {[%emt 0:00:20]} Nf6 {[%emt 0:01:18]} 3. Bg2 {[%emt 0:00:19]} e6 {[%emt 0:01:03]} 4. O-O {[%emt 0:00:44]} b5 {[%emt 0:02:42]} 5. a4 {[%emt 0:08:41]} b4 {[%emt 0:01:19]} 6. d3 {[%emt 0:01:53]} Bb7 {[%emt 0:15:44]} 7. e4 {[%emt 0:05:11]} Be7 {[%emt 0:07:25]} 8. exd5 {[%emt 0:11:14]} Bxd5 {[%emt 0:12:24]} 9. Nbd2 {[%emt 0:09:45]} c5 {[%emt 0:08:20]} 10. Nc4 {[%emt 0:03:50]} O-O {[%emt 0:02:51]} 11. Bf4 {[%emt 0:03:58]} Nc6 {[%emt 0:08:46]} 12. Re1 {[%emt 0:04:31]} Rc8 {[%emt 0:01:56]} 13. Qe2 {[%emt 0:10:13]} Qd7 {[%emt 0:09:57]} 14. c3 {[%emt 0:09:24]} Rfd8 {[%emt 0:04:27]} 15. a5 {[%emt 0:04:32]} h6 {[%emt 0:02:36]} 16. a6 {[%emt 0:02:14]} bxc3 {[%emt 0:02:50]} 17. bxc3 {[%emt 0:00:05]} Bxf3 {[%emt 0:01:59]} 18. Qxf3 {[%emt 0:06:24]} Nd5 {[%emt 0:00:06]} 19. Bd2 {[%emt 0:00:05]} Bf6 {[%emt 0:00:16]} 20. Ra3 {[%emt 0:00:39]} Nde7 {[%emt 0:02:43]} 21. Bf1 {[%emt 0:04:07]} Ng6 {[%emt 0:01:23]} 22. Qh5 {[%emt 0:04:04]} Qc7 {[%emt 0:03:43]} 23. Rb3 {[%emt 0:00:03]} Na5 {[%emt 0:00:43]} 24. Nxa5 {[%emt 0:00:07]} Qxa5 {[%emt 0:00:03]} 25. Rb7 {[%emt 0:04:08]} Qxa6 {[%emt 0:02:09]} 26. Qf3 {[%emt 0:00:07]} Qa5 {[%emt 0:01:44]} 27. Bxh6 {[%emt 0:01:54]} Qxc3 {[%emt 0:00:45]} 28. Rc1 {[%emt 0:00:13]} Ne5 {[%emt 0:01:24]} 29. Qh5 {[%emt 0:02:19]} Qd4 {[%emt 0:00:12]} 30. Bf4 {[%emt 0:01:27]} Ng6 {[%emt 0:00:46]} 1/2-1/2

[Event "ETCC Open 2023"]
[Site "Budva"]
[Date "2023.11.12"]
[Round "2.69"]
[White "Gretarsson, Hjorvar Steinn"]
[Black "Saraci, Nderim"]
[Result "1-0"]
[ECO "D35"]
[WhiteElo "2518"]
[BlackElo "2466"]
[Annotator "ChessBase"]
[PlyCount "85"]
[EventDate "2023.11.10"]
[EventType "team-tourn"]
[EventCountry "MNE"]
[SourceTitle "playchess.com"]
[Source "ChessBase"]
[SourceQuality "1"]
[WhiteTeam "Iceland"]
[BlackTeam "Kosovo"]
[WhiteTeamCountry "ISL"]
[BlackTeamCountry "KOS"]
[TimeControl "40/5400+30:1800+30"]

1. Nf3 {[%emt 0:00:05]} Nf6 {[%emt 0:00:29]} 2. d4 {[%emt 0:00:26]} d5 {[%emt 0:00:53]} 3. c4 {[%emt 0:00:17]} e6 {[%emt 0:00:16]} 4. Nc3 {[%emt 0:00:25]} Be7 {[%emt 0:05:14]} 5. Bf4 {[%emt 0:00:38]} O-O {[%emt 0:00:29]} 6. e3 {[%emt 0:00:33]} c6 {[%emt 0:02:51]} 7. Qc2 {[%emt 0:05:32]} Nbd7 {[%emt 0:04:26]} 8. cxd5 {[%emt 0:00:21]} exd5 {[%emt 0:05:02]} 9. Bd3 {[%emt 0:00:07]} b6 {[%emt 0:03:12]} 10. O-O {[%emt 0:04:01]} Bb7 {[%emt 0:00:55]} 11. Rfd1 {[%emt 0:03:39]} Re8 {[%emt 0:06:25]} 12. h3 {[%emt 0:00:39]} Nf8 {[%emt 0:01:04]} 13. Ne5 {[%emt 0:01:12]} Bd6 {[%emt 0:01:33]} 14. Bg3 {[%emt 0:06:01]} Ng6 {[%emt 0:19:43]} 15. f4 {[%emt 0:02:35]} c5 {[%emt 0:00:34]} 16. Qf2 {[%emt 0:17:03]} a6 {[%emt 0:05:43]} 17. a4 {[%emt 0:01:45]} Rc8 {[%emt 0:01:58]} 18. Rac1 {[%emt 0:06:45]} Rc7 {[%emt 0:05:37]} 19. Rf1 {[%emt 0:07:31]} Qc8 {[%emt 0:05:08]} 20. Nxg6 {[%emt 0:06:54]} fxg6 {[%emt 0:08:34]} 21. f5 {[%emt 0:02:53]} Bxg3 {[%emt 0:00:22]} 22. Qxg3 {[%emt 0:00:06]} g5 {[%emt 0:01:35]} 23. Qxg5 {[%emt 0:02:11]} Rce7 {[%emt 0:02:06]} 24. Rf3 {[%emt 0:02:34]} Qc7 {[%emt 0:01:13]} 25. Kf2 {[%emt 0:08:47]} c4 {[%emt 0:05:03]} 26. Bc2 {[%emt 0:01:35]} b5 {[%emt 0:03:27]} 27. axb5 {[%emt 0:01:12]} axb5 {[%emt 0:00:05]} 28. Rg3 {[%emt 0:01:54]} b4 {[%emt 0:04:14]} 29. Ne2 {[%emt 0:01:45]} c3 {[%emt 0:00:30]} 30. b3 {[%emt 0:01:49]} h6 {[%emt 0:02:53]} 31. Qh4 {[%emt 0:00:37]} Bc8 {[%emt 0:01:36]} 32. Nf4 {[%emt 0:01:23]} Qd6 {[%emt 0:01:46]} 33. Ra1 {[%emt 0:01:37]} Re4 {[%emt 0:00:26]} 34. Ra7 {[%emt 0:05:58]} Bd7 {[%emt 0:00:13]} 35. Rg6 {[%emt 0:03:38]} Rxe3 {[%emt 0:01:26]} 36. Rxd7 {[%emt 0:01:18]} Qxd7 {[%emt 0:00:30]} 37. Qxf6 {[%emt 0:00:39]} R3e7 {[%emt 0:00:53]} 38. Rg4 {[%emt 0:01:21]} Rf7 {[%emt 0:00:33]} 39. Qg6 {[%emt 0:00:51]} Qe7 {[%emt 0:00:29]} 40. Kg3 {[%emt 0:00:08]} Qe3+ {[%emt 0:00:30]} 41. Kh2 {[%emt 0:30:05]} Qxd4 {[%emt 0:08:06]} 42. f6 {[%emt 0:00:00]} Re4 {[%emt 0:02:00]} 43. Qxg7+ {[%emt 0:00:00]} 1-0

[Event "ETCC Open 2023"]
[Site "Budva"]
[Date "2023.11.12"]
[Round "2.70"]
[White "Uruci, Endrit"]
[Black "Stefansson, Hannes"]
[Result "1-0"]
[ECO "C56"]
[WhiteElo "2315"]
[BlackElo "2518"]
[Annotator "ChessBase"]
[PlyCount "85"]
[EventDate "2023.11.10"]
[EventType "team-tourn"]
[EventCountry "MNE"]
[SourceTitle "playchess.com"]
[Source "ChessBase"]
[SourceQuality "1"]
[WhiteTeam "Kosovo"]
[BlackTeam "Iceland"]
[WhiteTeamCountry "KOS"]
[BlackTeamCountry "ISL"]
[TimeControl "40/5400+30:1800+30"]

1. e4 {[%emt 0:00:03]} e5 {[%emt 0:00:20]} 2. Nf3 {[%emt 0:00:11]} Nc6 {[%emt 0:00:18]} 3. d4 {[%emt 0:00:17]} exd4 {[%emt 0:00:21]} 4. Bc4 {[%emt 0:00:18]} Nf6 {[%emt 0:00:45]} 5. e5 {[%emt 0:00:43]} d5 {[%emt 0:00:51]} 6. Bb5 {[%emt 0:00:07]} Ne4 {[%emt 0:00:30]} 7. Nxd4 {[%emt 0:00:12]} Bd7 {[%emt 0:01:13]} 8. Bxc6 {[%emt 0:00:44]} bxc6 {[%emt 0:00:26]} 9. O-O {[%emt 0:00:16]} Bc5 {[%emt 0:01:34]} 10. Be3 {[%emt 0:00:54]} Bb6 {[%emt 0:02:18]} 11. f3 {[%emt 0:00:52]} Nc5 {[%emt 0:01:08]} 12. f4 {[%emt 0:09:10]} Ne4 {[%emt 0:03:37]} 13. Nd2 {[%emt 0:01:12]} c5 {[%emt 0:11:19]} 14. N4b3 {[%emt 0:03:34]} Nxd2 {[%emt 0:03:00]} 15. Qxd2 {[%emt 0:01:11]} d4 {[%emt 0:06:29]} 16. Bf2 {[%emt 0:00:02]} Bc6 {[%emt 0:02:26]} 17. c4 {[%emt 0:03:04]} Qd7 {[%emt 0:04:25]} 18. Rae1 {[%emt 0:06:23]} O-O-O {[%emt 0:04:01]} 19. Bh4 {[%emt 0:01:17]} Rde8 {[%emt 0:01:05]} 20. f5 {[%emt 0:01:53]} g6 {[%emt 0:06:20]} 21. fxg6 {[%emt 0:07:03]} fxg6 {[%emt 0:01:49]} 22. Bf6 {[%emt 0:01:50]} Rhf8 {[%emt 0:00:25]} 23. Nc1 {[%emt 0:00:47]} Bb7 {[%emt 0:06:51]} 24. Nd3 {[%emt 0:00:53]} Qc6 {[%emt 0:00:44]} 25. Re2 {[%emt 0:03:29]} a5 {[%emt 0:04:31]} 26. Qh6 {[%emt 0:08:20]} Qe6 {[%emt 0:03:02]} 27. b3 {[%emt 0:03:02]} Qg4 {[%emt 0:00:47]} 28. Qd2 {[%emt 0:03:09]} g5 {[%emt 0:02:07]} 29. h3 {[%emt 0:05:00]} Qh5 {[%emt 0:02:10]} 30. e6 {[%emt 0:06:16]} g4 {[%emt 0:01:26]} 31. hxg4 {[%emt 0:05:09]} Qxg4 {[%emt 0:00:48]} 32. Rf4 {[%emt 0:00:35]} Qh5 {[%emt 0:09:13]} 33. Re5 {[%emt 0:04:37]} Qg6 {[%emt 0:01:19]} 34. Rg5 {[%emt 0:01:03]} Rxf6 {[%emt 0:00:36]} 35. Rxg6 {[%emt 0:00:09]} Rxg6 {[%emt 0:00:06]} 36. Rf2 {[%emt 0:01:03]} Rgxe6 {[%emt 0:00:12]} 37. Qg5 {[%emt 0:01:48]} Be4 {[%emt 0:06:56]} 38. Nxc5 {[%emt 0:03:08]} Rg6 {[%emt 0:02:02]} 39. Qe7 {[%emt 0:02:31]} Rgg8 {[%emt 0:01:26]} 40. Qd7+ {[%emt 0:00:59]} Kb8 {[%emt 0:00:06]} 41. Qb5 {[%emt 0:32:44]} Re7 {[%emt 0:35:07]} 42. Nxe4 {[%emt 0:01:49]} Rxe4 {[%emt 0:00:41]} 43. c5 {[%emt 0:00:04]} 1-0

[Event "ETCC Open 2023"]
[Site "Budva"]
[Date "2023.11.12"]
[Round "2.71"]
[White "Kjartansson, Gudmundur"]
[Black "Asllani, Muhamet"]
[Result "1-0"]
[ECO "A18"]
[WhiteElo "2449"]
[BlackElo "2216"]
[Annotator "ChessBase"]
[PlyCount "53"]
[EventDate "2023.11.10"]
[EventType "team-tourn"]
[EventCountry "MNE"]
[SourceTitle "playchess.com"]
[Source "ChessBase"]
[SourceQuality "1"]
[WhiteTeam "Iceland"]
[BlackTeam "Kosovo"]
[WhiteTeamCountry "ISL"]
[BlackTeamCountry "KOS"]
[TimeControl "40/5400+30:1800+30"]

1. c4 {[%emt 0:00:06]} Nf6 {[%emt 0:00:16]} 2. Nc3 {[%emt 0:00:26]} e6 {[%emt 0:00:07]} 3. e4 {[%emt 0:01:32]} d5 {[%emt 0:00:14]} 4. e5 {[%emt 0:01:32]} d4 {[%emt 0:00:43]} 5. exf6 {[%emt 0:00:19]} dxc3 {[%emt 0:00:05]} 6. bxc3 {[%emt 0:00:15]} Qxf6 {[%emt 0:00:49]} 7. Bd3 {[%emt 0:01:13]} Bd6 {[%emt 0:00:26]} 8. Nf3 {[%emt 0:02:10]} O-O {[%emt 0:00:46]} 9. O-O {[%emt 0:00:39]} e5 {[%emt 0:00:35]} 10. Be4 {[%emt 0:01:04]} h6 {[%emt 0:01:17]} 11. Rb1 {[%emt 0:01:19]} c6 {[%emt 0:04:55]} 12. Re1 {[%emt 0:02:47]} Nd7 {[%emt 0:03:32]} 13. d4 {[%emt 0:00:43]} Qd8 {[%emt 0:04:16]} 14. Bc2 {[%emt 0:02:45]} exd4 {[%emt 0:00:40]} 15. Qd3 {[%emt 0:04:11]} Nf6 {[%emt 0:01:06]} 16. cxd4 {[%emt 0:00:19]} Re8 {[%emt 0:01:45]} 17. Rxe8+ {[%emt 0:01:51]} Qxe8 {[%emt 0:00:06]} 18. Bb2 {[%emt 0:00:33]} Bg4 {[%emt 0:10:19]} 19. Re1 {[%emt 0:32:24]} Qd7 {[%emt 0:00:46]} 20. d5 {[%emt 0:02:20]} Re8 {[%emt 0:00:08]} 21. Bxf6 {[%emt 0:00:55]} Rxe1+ {[%emt 0:00:12]} 22. Nxe1 {[%emt 0:00:04]} gxf6 {[%emt 0:00:10]} 23. h3 {[%emt 0:02:18]} Bb4 {[%emt 0:00:54]} 24. Qh7+ {[%emt 0:01:55]} Kf8 {[%emt 0:00:03]} 25. Nd3 {[%emt 0:00:23]} Bd2 {[%emt 0:01:07]} 26. hxg4 {[%emt 0:01:10]} Qxg4 {[%emt 0:00:38]} 27. d6 {[%emt 0:00:41]} 1-0

[Event "ETCC Open 2023"]
[Site "Budva"]
[Date "2023.11.12"]
[Round "2.72"]
[White "Saraci, Korab"]
[Black "Heimisson, Hilmir Freyr"]
[Result "0-1"]
[ECO "C55"]
[WhiteElo "2200"]
[BlackElo "2377"]
[Annotator "ChessBase"]
[PlyCount "74"]
[EventDate "2023.11.10"]
[EventType "team-tourn"]
[EventCountry "MNE"]
[SourceTitle "playchess.com"]
[Source "ChessBase"]
[SourceQuality "1"]
[WhiteTeam "Kosovo"]
[BlackTeam "Iceland"]
[WhiteTeamCountry "KOS"]
[BlackTeamCountry "ISL"]
[TimeControl "40/5400+30:1800+30"]

1. e4 {[%emt 0:00:04]} e5 {[%emt 0:00:16]} 2. Nf3 {[%emt 0:00:05]} Nc6 {[%emt 0:00:12]} 3. Bc4 {[%emt 0:00:03]} Nf6 {[%emt 0:00:13]} 4. d3 {[%emt 0:00:08]} h6 {[%emt 0:00:08]} 5. c3 {[%emt 0:00:17]} d6 {[%emt 0:02:21]} 6. h3 {[%emt 0:03:22]} g6 {[%emt 0:03:42]} 7. O-O {[%emt 0:04:28]} g5 {[%emt 0:12:28]} 8. b4 {[%emt 0:22:24]} g4 {[%emt 0:13:37]} 9. hxg4 {[%emt 0:00:14]} Nxg4 {[%emt 0:00:25]} 10. Re1 {[%emt 0:11:01]} Qf6 {[%emt 0:10:15]} 11. Be3 {[%emt 0:13:46]} Be7 {[%emt 0:01:39]} 12. d4 {[%emt 0:07:05]} Qg6 {[%emt 0:02:33]} 13. b5 {[%emt 0:02:22]} Rg8 {[%emt 0:02:29]} 14. Bf1 {[%emt 0:00:22]} Nd8 {[%emt 0:01:04]} 15. Nbd2 {[%emt 0:05:07]} Bd7 {[%emt 0:03:37]} 16. a4 {[%emt 0:03:16]} Ne6 {[%emt 0:02:35]} 17. Nc4 {[%emt 0:04:02]} Qh5 {[%emt 0:08:10]} 18. dxe5 {[%emt 0:06:25]} dxe5 {[%emt 0:00:22]} 19. Qd5 {[%emt 0:01:15]} Rd8 {[%emt 0:07:28]} 20. Qxb7 {[%emt 0:05:08]} Ng5 {[%emt 0:06:40]} 21. Bxg5 {[%emt 0:02:16]} hxg5 {[%emt 0:00:08]} 22. g3 {[%emt 0:00:07]} Bc5 {[%emt 0:03:07]} 23. Ra2 {[%emt 0:00:06]} Nxf2 {[%emt 0:01:33]} 24. Bg2 {[%emt 0:03:46]} Nd3+ {[%emt 0:03:15]} 25. Re3 {[%emt 0:00:18]} g4 {[%emt 0:06:10]} 26. Nd4 {[%emt 0:02:35]} exd4 {[%emt 0:03:13]} 27. Rxd3 {[%emt 0:00:12]} dxc3+ {[%emt 0:00:06]} 28. Kf1 {[%emt 0:00:10]} Qh6 {[%emt 0:01:08]} 29. Qxc7 {[%emt 0:01:13]} Qc1+ {[%emt 0:00:41]} 30. Ke2 {[%emt 0:00:07]} Qg1 {[%emt 0:00:24]} 31. Ne3 {[%emt 0:03:13]} Bxe3 {[%emt 0:02:25]} 32. Qe5+ {[%emt 0:00:05]} Be6 {[%emt 0:00:22]} 33. Rxd8+ {[%emt 0:00:42]} Kxd8 {[%emt 0:00:01]} 34. Qb8+ {[%emt 0:00:44]} Ke7 {[%emt 0:00:54]} 35. Qc7+ {[%emt 0:00:33]} Kf6 {[%emt 0:01:22]} 36. e5+ {[%emt 0:00:12]} Kg7 {[%emt 0:00:08]} 37. Kd3 {[%emt 0:01:06]} Bxa2 {[%emt 0:01:02]} 0-1

[Event "ETCC Open 2023"]
[Site "Budva"]
[Date "2023.11.12"]
[Round "2.73"]
[White "Morrison, Graham"]
[Black "Dardha, Daniel"]
[Result "0-1"]
[ECO "E10"]
[WhiteElo "2221"]
[BlackElo "2575"]
[Annotator "TA"]
[PlyCount "82"]
[EventDate "2023.11.10"]
[EventType "team-tourn"]
[EventCountry "MNE"]
[SourceTitle "playchess.com"]
[Source "ChessBase"]
[SourceQuality "1"]
[WhiteTeam "Scotland"]
[BlackTeam "Belgium"]
[WhiteTeamCountry "SCO"]
[BlackTeamCountry "BEL"]
[TimeControl "40/5400+30:1800+30"]

{[%evp 9,82,26,35,27,25,20,20,19,25,25,26,14,10,0,4,0,47,11,30,30,25,-17,-10,-1,-27,-37,-35,-36,-22,-36,-14,-125,-136,-150,-151,-170,-164,-156,-147,-193,-206,-202,-203,-204,-177,-290,-310,-304,-314,-294,-287,-308,-309,-601,-581,-568,-513,-513,-490,-599,-570,-1253,-1261,-1535,-1512,-2268,-2268,-29991,-9063,-29996,-29991,-29997,-29998,-29998,-29999]} 1. d4 {[%emt 0:00:04]} Nf6 {[%emt 0:00:19]} 2. c4 {[%emt 0:00:12]} e6 {[%emt 0:00:16]} 3. Nf3 {[%emt 0:00:12]} h6 {[%emt 0:00:04]} 4. g3 {[%emt 0:01:55]} d5 {[%emt 0:00:14]} 5. Bg2 {[%emt 0:00:09]} Bb4+ {[%emt 0:01:14]} 6. Bd2 {[%emt 0:00:32] E10: Blumenfeld Gambit.} Be7 {[%emt 0:00:08] is the new trend.} 7. O-O {[%emt 0:00:19]} O-O {[%emt 0:00:06]} 8. Qc2 {[%emt 0:00:40] The position is equal.} c6 {[%emt 0:00:15]} 9. Rd1 {[%emt 0:00:36]} Nbd7 {[%emt 0:00:29]} 10. Bf4 {[%emt 0:01:12]} a5 {[%emt 0:00:45]} 11. Nc3 {[%emt 0:16:17]} (11. Ne5 {is more complex.} Nh5 12. Be3 Nhf6 13. f3) 11... dxc4 {[%emt 0:03:26]} 12. e4 {[%emt 0:03:22]} Nb6 {[%emt 0:19:46] [#]} (12... b6 $11) 13. Ne5 $146 {[%emt 0:03:25]} ({Predecessor:} 13. Qe2 Ne8 14. Ne5 Nd6 15. h4 a4 16. a3 Nb5 17. Be3 Nxc3 18. bxc3 Qc7 19. Nxc4 Nxc4 20. Qxc4 {0-1 Sapenov,D (2276)-Daneshvar,B (2516) World ol U16 2022 (6.2)}) 13... Qe8 {[%emt 0:11:58]} 14. Be3 {[%emt 0:04:12]} Nfd7 {[%emt 0:03:06]} 15. f4 {[%emt 0:09:27]} Nxe5 $1 {[%emt 0:02:27]} 16. dxe5 {[%emt 0:11:26]} Nd7 {[%emt 0:00:23]} 17. Ne2 {[%emt 0:04:20]} b5 {[%emt 0:01:09]} 18. b3 {[%emt 0:00:27]} Ba6 {[%emt 0:03:10]} 19. bxc4 {[%emt 0:01:51]} bxc4 {[%emt 0:00:31]} (19... b4 $5 {[%cal Rc6c5]}) 20. Qd2 {[%emt 0:06:40]} (20. Bf1 $11 {keeps the balance.}) 20... Nc5 $17 {[%emt 0:02:41] White is on the road to losing.} 21. Qxa5 {[%emt 0:00:29] [#]} c3 $1 {[%emt 0:05:20][%mdl 512]} 22. Nxc3 {[%emt 0:00:33] [#]} Be2 $1 {[%emt 0:00:17][%mdl 576] Discovered Attack} 23. Qb6 {[%emt 0:04:03]} (23. Qb4 Bxd1) 23... Ra6 {[%emt 0:04:23]} 24. Qb2 {[%emt 0:08:48]} (24. Qb4 $17 Bxd1 25. Bxc5 Bxc5+ 26. Qxc5) 24... Bxd1 $19 {[%emt 0:00:08]} 25. Rxd1 {[%emt 0:01:28]} Na4 {[%emt 0:02:37]} 26. Nxa4 {[%emt 0:00:27]} Rxa4 {[%emt 0:00:06]} 27. Qc2 {[%emt 0:05:53] [#]} (27. Qb7 $142) 27... Qa8 $1 {[%emt 0:01:24]} 28. Rd2 {[%emt 0:00:17]} Ra3 {[%emt 0:01:47][%cal Ba4a3,Ba3c3,Bc3c1][%mdl 32]} 29. Bf2 {[%emt 0:05:07]} Rd8 {[%emt 0:01:18] And now ...Rxd2 would win.} 30. Re2 {[%emt 0:00:56]} Qa5 {[%emt 0:01:01]} 31. Qxc6 $2 {[%emt 0:01:53]} (31. Bf1) 31... Rc3 {[%emt 0:04:00]} 32. Qb6 {[%emt 0:01:48]} Rc1+ {[%emt 0:00:27]} 33. Bf1 {[%emt 0:00:08]} Qa4 {[%emt 0:02:00] Threatens to win with ...Rdd1.} 34. Be3 {[%emt 0:01:24]} Ra1 {[%emt 0:01:26] ...Rdd1 is the strong threat.} ({Not} 34... Qxe4 35. Bxc1 Qc4 36. Be3 $18) 35. Kf2 {[%emt 0:02:49]} Qd1 {[%emt 0:04:32][%csl Ga1][%cal Rd1f1] Dodges Qb3} (35... Rxa2 $2 {loses.} 36. Rxa2 Qxa2+ 37. Be2 $19) ({Inferior is} 35... Qxe4 36. Bg2 Qd3 37. Qc7 $17) 36. Bg2 {[%emt 0:01:02]} Rd3 {[%emt 0:01:24]} 37. Qb8+ {[%emt 0:01:52]} Kh7 {[%emt 0:00:20][%cal Od3e3] ( -> ...Rxe3!)} 38. Qc7 {[%emt 0:01:00] [#]} h5 $1 {[%emt 0:01:39]} 39. Qxe7 {[%emt 0:00:39]} (39. Qa7 Bb4) 39... Qg1+ {[%emt 0:00:09] Black mates.} 40. Kf3 {[%emt 0:00:07] [#]} Rf1+ $1 {[%emt 0:00:15][%mdl 512]} 41. Bxf1 {[%emt 0:30:33]} Rxe3+ {[%emt 0:30:06] Magnificent play by Dardha!   Weighted Error Value: White=1.05/Black=0.25 (precise)} 0-1

[Event "ETCC Open 2023"]
[Site "Budva"]
[Date "2023.11.12"]
[Round "2.74"]
[White "Glek, Igor"]
[Black "Mitchell, Martin"]
[Result "1/2-1/2"]
[ECO "B08"]
[WhiteElo "2435"]
[BlackElo "2186"]
[Annotator "ChessBase"]
[PlyCount "112"]
[EventDate "2023.11.10"]
[EventType "team-tourn"]
[EventCountry "MNE"]
[SourceTitle "playchess.com"]
[Source "ChessBase"]
[SourceQuality "1"]
[WhiteTeam "Belgium"]
[BlackTeam "Scotland"]
[WhiteTeamCountry "BEL"]
[BlackTeamCountry "SCO"]
[TimeControl "40/5400+30:1800+30"]

1. e4 {[%emt 0:00:30]} d6 {[%emt 0:00:15]} 2. d4 {[%emt 0:00:05]} Nf6 {[%emt 0:00:13]} 3. Nc3 {[%emt 0:00:11]} g6 {[%emt 0:00:19]} 4. Nf3 {[%emt 0:01:27]} Bg7 {[%emt 0:00:10]} 5. Be3 {[%emt 0:04:26]} a6 {[%emt 0:02:35]} 6. a4 {[%emt 0:03:58]} O-O {[%emt 0:04:51]} 7. h3 {[%emt 0:00:10]} Nc6 {[%emt 0:02:29]} 8. Bc4 {[%emt 0:07:41]} e6 {[%emt 0:00:31]} 9. O-O {[%emt 0:00:08]} d5 {[%emt 0:00:47]} 10. Bd3 {[%emt 0:00:41]} dxe4 {[%emt 0:00:37]} 11. Nxe4 {[%emt 0:01:18]} Nd5 {[%emt 0:01:30]} 12. Bg5 {[%emt 0:01:44]} f6 {[%emt 0:01:05]} 13. Bd2 {[%emt 0:02:40]} f5 {[%emt 0:01:44]} 14. Bg5 {[%emt 0:02:43]} Nde7 {[%emt 0:01:41]} 15. Nc5 {[%emt 0:10:50]} h6 {[%emt 0:22:59]} 16. Be3 {[%emt 0:14:58]} Nxd4 {[%emt 0:11:16]} 17. Bc4 {[%emt 0:05:29]} Nxf3+ {[%emt 0:00:32]} 18. Qxf3 {[%emt 0:00:10]} Nd5 {[%emt 0:03:41]} 19. Rad1 {[%emt 0:11:28]} c6 {[%emt 0:01:31]} 20. Nb3 {[%emt 0:03:50]} b5 {[%emt 0:03:13]} 21. Bxd5 {[%emt 0:06:19]} cxd5 {[%emt 0:01:54]} 22. a5 {[%emt 0:00:23]} Bb7 {[%emt 0:08:39]} 23. Nc5 {[%emt 0:05:56]} Qe7 {[%emt 0:00:38]} 24. b4 {[%emt 0:01:26]} d4 {[%emt 0:09:24]} 25. Qxb7 {[%emt 0:01:31]} Qxb7 {[%emt 0:00:06]} 26. Nxb7 {[%emt 0:00:02]} dxe3 {[%emt 0:00:12]} 27. fxe3 {[%emt 0:00:13]} Bc3 {[%emt 0:01:33]} 28. Rb1 {[%emt 0:02:19]} Rfc8 {[%emt 0:05:02]} 29. Rfd1 {[%emt 0:01:29]} Rc7 {[%emt 0:06:21]} 30. Nd8 {[%emt 0:02:13]} Be5 {[%emt 0:02:43]} 31. Nxe6 {[%emt 0:01:51]} Rxc2 {[%emt 0:00:13]} 32. Nc5 {[%emt 0:05:31]} Bc3 {[%emt 0:01:08]} 33. Rd6 {[%emt 0:00:42]} Bxb4 {[%emt 0:01:45]} 34. Rxb4 {[%emt 0:01:30]} Rxc5 {[%emt 0:00:10]} 35. Rxg6+ {[%emt 0:00:03]} Kh7 {[%emt 0:01:36]} 36. Rb6 {[%emt 0:00:08]} Rg8 {[%emt 0:01:30]} 37. Rd4 {[%emt 0:00:06]} Rc2 {[%emt 0:02:50]} 38. Rd7+ {[%emt 0:00:26]} Rg7 {[%emt 0:00:02]} 39. Rxg7+ {[%emt 0:00:06]} Kxg7 {[%emt 0:00:01]} 40. Rxa6 {[%emt 0:00:06]} Ra2 {[%emt 0:00:36]} 41. Ra7+ {[%emt 0:30:24]} Kf6 {[%emt 0:30:30]} 42. a6 {[%emt 0:00:21]} b4 {[%emt 0:00:00]} 43. Rb7 {[%emt 0:00:00]} Rxa6 {[%emt 0:00:00]} 44. Rxb4 {[%emt 0:00:00]} Ra2 {[%emt 0:00:00]} 45. Kf1 {[%emt 0:00:00]} Rc2 {[%emt 0:00:00]} 46. Rf4 {[%emt 0:00:00]} Kg5 {[%emt 0:00:00]} 47. h4+ {[%emt 0:00:00]} Kg6 {[%emt 0:00:00]} 48. g3 {[%emt 0:00:00]} Rb2 {[%emt 0:00:00]} 49. Rf2 {[%emt 0:00:00]} Rb1+ {[%emt 0:00:00]} 50. Kg2 {[%emt 0:00:00]} Re1 {[%emt 0:00:00]} 51. Kf3 {[%emt 0:00:00]} h5 {[%emt 0:00:00]} 52. Rd2 {[%emt 0:00:00]} Rf1+ {[%emt 0:00:00]} 53. Ke2 {[%emt 0:00:00]} Rg1 {[%emt 0:00:00]} 54. Rd6+ {[%emt 0:00:00]} Kg7 {[%emt 0:00:00]} 55. Kf2 {[%emt 0:00:00]} Ra1 {[%emt 0:00:00]} 56. Rb6 {[%emt 0:00:00]} Rc1 {[%emt 0:00:00]} 1/2-1/2